Cogmind - Beta 13 @@@ ROGUE MODE // 2024.04.16 @ 03:51:12 Player: Exceptionally Mediocre Result: Destroyed by GA-1BW(R) with Subdweller Machine Gun Performance ------------- Evolutions (0) 0 Regions Visited (2) 400 Robots Destroyed (27) 135 Value Destroyed (462) 462 Prototype IDs (1) 20 Alien Tech Used (0) 0 Bonus (0) 0 TOTAL SCORE: 1017 Bonus ------- None Cogmind --------- Core Integrity 0/250 Matter 96/300 Energy 181/200 System Corruption 3% Temperature Cool (6) Movement Rolling (110) Ox2 Location -10/Subcaves Parts ------- > --- POWER (1) -------- Subdweller Power Source > --- PROPULSION (2) --- Wheel > --- UTILITY (2) ------ Large Storage Unit > --- WEAPON (2) ------- Light Assault Rifle > --- INVENTORY (15) --- Light Ion Engine Light Ion Engine Improved Heat Sink High-capacity Battery (250) Large Matter Pod (140) Improved Terrain Scanner Core Shielding Utility Shielding Light Armor Plating Light Armor Plating Light Armor Plating Mining Claw Peak State ------------ > --- POWER ------------ Ion Engine > --- PROPULSION ------- Wheel Subdweller Monowheel > --- UTILITY ---------- Large Storage Unit Power Bank > --- WEAPON ----------- Assault Rifle Mining Claw > --- INVENTORY -------- Light Ion Engine Subdweller Power Source Wheel Improved Heat Sink High-capacity Battery Large Matter Pod Improved Terrain Scanner Core Shielding Utility Shielding Light Armor Plating Light Armor Plating Light Armor Plating Light Armor Plating Light Assault Rifle Subdweller Shrapnel Launcher [Rating: 18] Favorites ----------- Power Ion Engine Engine Ion Engine Propulsion Wheel Wheel Wheel Utility Large Storage Unit Device Improved Terrain Scanner Storage Large Storage Unit Protection Light Armor Plating Weapon Assault Rifle Energy Gun Particle Gun Ballistic Gun Assault Rifle Launcher Subdweller Shrapnel Launcher Slashing Weapon Mining Claw Build | -11 -10 -10 ------- Run | Yrd Mat Sub Slots Evolved . | . . . Power . | . . . Propulsion . | . . . Utility . | . . . Weapon . | . . . Parts Attached 41 | 8 22 11 Power 7 | 2 4 1 Engine 7 | 2 4 1 Core . | . . . Reactor . | . . . Propulsion 11 | 2 6 3 Treads . | . . . Leg . | . . . Wheel 11 | 2 6 3 Hover . | . . . Flight . | . . . Utility 9 | 2 4 3 Device 5 | 1 2 2 Storage 2 | 1 1 . Processor . | . . . Hackware . | . . . Protection 2 | . 1 1 Artifact . | . . . Weapon 14 | 2 8 4 Energy Gun 1 | . 1 . Energy Cannon . | . . . Ballistic Gun 9 | 2 5 2 Ballistic Cannon . | . . . Launcher 1 | . . 1 Special Weapon . | . . . Impact Weapon . | . . . Slashing Weapon 3 | . 2 1 Piercing Weapon . | . . . Special Melee Weapon . | . . . Unidentified Prototypes 1 | . . 1 Parts Lost 13 | . 8 5 Power 2 | . 1 1 Propulsion 4 | . 3 1 Utility 2 | . 1 1 Weapon 5 | . 3 2 Highest Loss Streak 5 | . 4 5 To Critical Strikes . | . . . Average Slot Usage (%) 97 | . 96 99 Engine 13 | . 13 14 Wheel 27 | . 27 27 Device 12 | . 11 13 Storage 14 | . 14 14 Ballistic Gun 20 | . 19 22 Slashing Weapon 5 | . 6 4 Naked Turns . | . . . Heaviest Build 36 | 15 33 36 Greatest Support 30 | 26 26 30 Greatest Overweight (x) 8 | 1 8 2 Average Overweight (x) . | . . 1 Largest Inventory Capacity 15 | 8 15 15 Average Capacity 14 | 7 14 15 Most Carried 15 | 8 15 15 Average Carried 13 | 4 13 14 Final Capacity 15 | 8 15 15 Final Carried 15 | 8 15 12 Class Distribution -------------------- 59% | Scavenger-Mutant 40% | Mutant Dominant Class ---------------- Scavenger-Mutant | -10/Materials Scavenger-Mutant | -10/Subcaves Resources | -11 -10 -10 ----------- Run | Yrd Mat Sub Matter Collected 993 | 291 589 113 Remotely . | . . . Salvage Created 923 | 159 764 . Parts 52 | 12 40 . Haulers Intercepted 2 | . 2 . Recyclers Shooed 2 | . 2 . Parts Field Recycled . | . . . Retrieved Matter . | . . . Parts Self-Destructed 13 | . . 13 Prevented . | . . . Kills | -11 -10 -10 ------- Run | Yrd Mat Sub Combat Hostiles Destroyed 10 | . 10 . Guns 10 | . 10 . Classes Destroyed 10 | 2 8 . Worker 2 | . 2 . Builder 1 | . 1 . Tunneler 4 | 3 1 . Hauler 2 | . 2 . Recycler 3 | 1 2 . Mechanic 1 | . 1 . Operator 2 | . 2 . Watcher 2 | . 2 . Swarmer 2 | . 2 . Grunt 8 | . 8 . Best Kill Streak 5 | 2 5 . Combat Bots Only 3 | . 3 . Max Kills in Single Turn 4 | 1 4 . Gunslinging . | . . . Exploded . | . . . Melee . | . . . Uniques/NPCs Destroyed . | . . . Combat | -11 -10 -10 -------- Run | Yrd Mat Sub Hostile Shots Fired 113 | . 91 22 Missed 28 | . 23 5 Damage Taken 1259 | . 872 387 Core 259 | . 177 82 Absorbed by Shields . | . . . Core Remaining (%) 100 | 100 . . Volleys Fired 105 | 11 87 7 Largest 2 | 2 2 2 Hottest 85 | 40 85 60 Shots Fired 172 | 22 139 11 Gun 170 | 22 139 9 Cannon . | . . . Launcher 2 | . . 2 Special . | . . . Kinetic 155 | 22 122 11 Thermal 17 | . 17 . Explosive . | . . . Electromagnetic . | . . . Robot Hit Streak 12 | 11 12 7 Robot Miss Streak 4 | 2 4 . Penetration Max . | . . . Secondary Targets . | . . . Shots Hit Robots 109 | 16 87 6 Core Hits 40 | 4 34 2 Critical Kills . | . . . Critical Parts Destroyed . | . . . Critical Strikes 2 | . 2 . Burn 2 | . 2 . Melee Attacks 10 | . 6 4 Impact . | . . . Slashing 10 | . 6 4 Piercing . | . . . Sneak Attacks 1 | . 1 . Combat Hostiles . | . . . Follow-up Attacks . | . . . Damage Inflicted 2203 | 219 1763 221 Guns 1347 | 219 1082 46 Cannons . | . . . Explosions 784 | . 609 175 Melee 72 | . 72 . Ramming . | . . . Kinetic 1343 | 219 903 221 Thermal 788 | . 788 . Explosive . | . . . Electromagnetic . | . . . Impact . | . . . Slashing 72 | . 72 . Piercing . | . . . Highest Corruption 3 | . 3 3 Average Corruption 2 | . 1 3 Corruption Purged . | . . . Corruption Blocked . | . . . Effects 23 | . 7 16 Message Errors 5 | . . 5 Matter Fused 5 | . 1 4 Heat Flow Errors 3 | . 1 2 Energy Discharges 4 | . 3 1 Data Loss (minor) 4 | . 2 2 Data Loss (major) 1 | . . 1 Misfires 1 | . . 1 Overload Shots . | . . . Overflow Damage 301 | . 301 . Projectiles . | . . . Explosions 301 | . 301 . Melee . | . . . Knockbacks . | . . . Impact . | . . . Kinetic . | . . . Secondary . | . . . Self-Inflicted Damage 119 | . 98 21 Shots 2 | . 1 1 Rammed . | . . . Targets Rammed . | . . . Kicked . | . . . Crushed . | . . . Highest Temperature 292 | . 292 238 Average Temperature 163 | . 167 114 Received Heat Transfer 447 | . 387 60 Effects 3 | . 3 . Energy Bleed 3 | . 3 . Siege Activations . | . . . Robots Corrupted . | . . . Combat Hostiles . | . . . Parts Fried . | . . . Impact Corruptions . | . . . Robots Melted . | . . . Combat Hostiles . | . . . Parts Melted 4 | . 4 . Heat Transferred 942 | . 942 . Parts Sabotaged . | . . . Parts Stolen . | . . . Parts Stripped . | . . . Power Chain Reactions . | . . . Alert | -11 -10 -10 ------- Run | Yrd Mat Sub Peak Influence 265 | 20 265 . Initial 13 | . 13 . Average 92 | 8 100 . Maximum Alert Level 1 | . 1 . Low Security (%) 84 | 100 82 . Level 1 15 | . 17 . Level 2 . | . . . Level 3 . | . . . Level 4 . | . . . Level 5 . | . . . High Security . | . . . Max Security . | . . . Squads Dispatched 3 | . 3 . Investigation 1 | . 1 . Extermination . | . . . Reinforcement 2 | . 2 . Assault . | . . . Garrison . | . . . Intercept . | . . . Searches Triggered . | . . . Construction Impeded . | . . . Haulers Reinforced . | . . . Active Scanning Responses . | . . . Cargo Convoy Interrupts . | . . . Stealth | -11 -10 -10 --------- Run | Yrd Mat Sub Distress Signals 1 | . 1 . Communications Jammed . | . . . Distress Signals . | . . . Times Spotted 26 | . 23 3 Peak Tracking Total 5 | . 5 3 Tactical Retreats . | . . . Traps | -11 -10 -10 ------- Run | Yrd Mat Sub Traps Triggered 7 | . 7 . Indirectly . | . . . Trap Hack Attempts . | . . . Triggered . | . . . Disarmed . | . . . Reprogrammed . | . . . Reused . | . . . Traps Extracted . | . . . Installed . | . . . Triggered . | . . . Machines | -11 -10 -10 ---------- Run | Yrd Mat Sub Machines Disabled 2 | . 1 1 Max in Single Turn 1 | . 1 1 Machines Repaired . | . . . Machines Dismantled . | . . . Machines Sabotaged . | . . . Overloaded Fab Kills . | . . . Hacking | -11 -10 -10 --------- Run | Yrd Mat Sub Machines Accessed 4 | . 4 . Terminals 4 | . 4 . Fabricators . | . . . Repair Stations . | . . . Recycling Units . | . . . Scanalyzers . | . . . Garrison Access . | . . . Total Hacks 15 | . 15 . Successful 10 | . 10 . Failed 5 | . 5 . Catastrophic 1 | . 1 . Database Lockouts . | . . . Manual 14 | . 14 . Terminals 15 | . 15 . Fabricators . | . . . Repair Stations . | . . . Recycling Units . | . . . Scanalyzers . | . . . Garrison Access . | . . . Terminal Hacks 6 | . 6 . Record 1 | . 1 . Branch Access Points 1 | . 1 . Recall Investigation 1 | . 1 . Zone Layout 3 | . 3 . Fabricator Hacks . | . . . Repair Station Hacks . | . . . Recycling Unit Hacks . | . . . Scanalyzer . | . . . Garrison Access Hacks . | . . . Unauthorized Hacks 4 | . 4 . Terminals 4 | . 4 . Botnet 4 | . 4 . Fabricators . | . . . Repair Stations . | . . . Recycling Units . | . . . Scanalyzers . | . . . Garrison Access . | . . . Data Cores Recovered . | . . . Used . | . . . Hacking Detections 2 | . 2 . Full Trace Events . | . . . Feedback Events . | . . . Feedback Blocked . | . . . Robot Schematics Acquired . | . . . Robots Built . | . . . Authchips . | . . . Time . | . . . Total Robot Build Rating . | . . . Part Schematics Acquired . | . . . Parts Built . | . . . Authchips . | . . . Time . | . . . Total Part Build Rating . | . . . Parts Repaired . | . . . Time . | . . . Parts Recycled . | . . . Recycled Matter . | . . . Retrieved Matter . | . . . Retrieved Components . | . . . Parts Scanalyzed . | . . . Part Schematics Acquired . | . . . Parts Damaged . | . . . Bothacking | -11 -10 -10 ------------ Run | Yrd Mat Sub Used RIF Installer . | . . . Robots Hacked . | . . . Non-combat . | . . . Combat . | . . . Robot Hacks Applied . | . . . Relay Couplers Released . | . . . Fabnet Peak Effective % . | . . . Robots Rewired . | . . . Allies Hacked . | . . . Hacks Repelled . | . . . Allies | -11 -10 -10 -------- Run | Yrd Mat Sub Total Allies . | . . . Largest Group . | . . . Highest-Rated Group . | . . . Highest-Rated Ally . | . . . Total Orders . | . . . Ally Attacks . | . . . Total Damage . | . . . Kills . | . . . Allies Corrupted . | . . . Allies Melted . | . . . Intel | -11 -10 -10 ------- Run | Yrd Mat Sub Robot Analysis Total . | . . . Derelict Logs Recovered 1 | . . 1 Drone Launches . | . . . Drone Recoveries . | . . . Exploration | -11 -10 -10 ------------- Run | Yrd Mat Sub Turns Passed 1881 | 112 1088 681 Spaces Moved 1410 | 67 739 604 Core 3 | 2 1 . Treads . | . . . Legs . | . . . Wheels 1407 | 65 738 604 Hover . | . . . Flight . | . . . Fastest Speed 50 | 50 90 95 Average Speed 103 | 88 103 104 Slowest Speed 450 | 95 450 110 Overloaded Moves . | . . . Propulsion Burnouts . | . . . Robots Hopped . | . . . Cave-ins Triggered . | . . . Exploration Rate (%) 43 | 4 94 32 Regions Visited 2 Branch Regions 1 Pre-discovered Areas 2 | . . 2 Known Exits Taken . | . . . Unknown Exits Taken 2 | 1 1 . Scrap Searched 2 | . . 2 Spaces Dug 4 | . 4 . Terrain Destroyed 57 | . 23 34 Melee 4 | . 4 . Projectile . | . . . AOE 53 | . 19 34 Terrain Rammed . | . . . Walls Destroyed . | . . . Machines Disabled . | . . . Actions | -11 -10 -10 --------- Run | Yrd Mat Sub Total 1638 | 93 908 637 Wait 28 | . 28 . Move 1408 | 66 738 604 Hop . | . . . Pick Up 33 | 8 20 5 Fast Attach 17 | 6 11 . Attach 10 | 1 7 2 Detach . | . . . Swap 14 | 1 4 9 Drop 13 | . 7 6 Fire 105 | 11 87 7 Melee 10 | . 6 4 Ram . | . . . Kick . | . . . Crush . | . . . Escape Stasis . | . . . Rewire . | . . . Trap . | . . . Miscellaneous . | . . . Route ------- -11/Scrapyard -10/Materials (discovered 6 exits: [*Mat x3] / *Min x2 / *Sub) -10/Subcaves History --------- Turn | Location | Event 53 | -11/Scrapyard | Discovered new exit (range 16) 113 | -11/Scrapyard | Entered Materials 179 | -10/Materials | Discovered new exit (range 18) 316 | -10/Materials | Build established: Mutant 402 | -10/Materials | Discovered new exit (range 16) 518 | -10/Materials | Core integrity fell below 50% 555 | -10/Materials | Lost 4 parts (2n2w) 595 | -10/Materials | Lost 3 parts (1p1u1w) 699 | -10/Materials | Discovered new exit (range 16) 815 | -10/Materials | Discovered new exit (range 12) 872 | -10/Materials | Build established: Scavenger-Mutant 925 | -10/Materials | Discovered new exit (range 10) 927 | -10/Materials | Identified exit to Mines 1190 | -10/Materials | Discovered new exit (range 6) 1201 | -10/Materials | Entered Subcaves 1230 | -10/Subcaves | Shifting Twisted Machinery released Shrapnel Trap 1260 | -10/Subcaves | Shifting Twisted Machinery released Sub. Optics 1617 | -10/Subcaves | Visited 4L-MR0's lab 1632 | -10/Subcaves | Found Prototype Device 1633 | -10/Subcaves | Identified Power Bank 1634 | -10/Subcaves | Attached Power Bank, gained temporary slots: Power x3 1771 | -10/Subcaves | Learned location of Zion (-7) 1771 | -10/Subcaves | Met a Zionite searching for "candidates" 1872 | -10/Subcaves | Core integrity fell below 20% 1882 | -10/Subcaves | Destroyed by GA-1BW(R) with Subdweller Machine Gun Last Messages --------------- 01765_ 55-Z2A(z): "She is not going to be happy we haven't found any suitable candidates yet." 01771_ 55-Z2A(z): "Hey you! It's really dangerous down here, I feel that you could die at any moment. For your health and safety might I suggest a trip to Zion?" World map updated: -7/Zion. 01777_ DZ2JRVOG&T< RR2SZHBNHZ4EM I 01814_ ,XJ0T51&U=I:=HDJGYHZ9D##C 8ES 01857_ System corrupted: Heat flow error (+278). 01862_ Dropped Imp. Heat Sink. 01862_ Dropped Broken Sub. Monowheel. 01863_ Acquired Imp. Heat Sink. 01866_ 4O-U4Y(R): "ARGHSUB!" 01867_ Wheel destroyed. 01870_ Sub. Shrapnel Launcher destroyed. 01873_ Assault Rifle destroyed. 01874_ Ion Engine destroyed. 01878_ Subatomizers dissect the Mak. Laser. 01882_ Lgt. Armor Plating destroyed. Map ----- +----------------------------------------------------+ | ???????????????????????????????????????????# ### | | ???????????????????????????????????????????## ## | | ????????????????????????????????#???????????# | | ?????????????????????????#????????#????????## | | ????????????????????????????????##???####?## | | ???????????????????????????????## ##?# #??## | | ???????????????????????????????# #?# ###?###### | | ???????????????????????????????# ### ##???#### | | ???????????????????????? ?? ? ??# #?#### # | | ??????????????????????????? ????# #### | | ??????????????????????????????#?# ## | | ????????????????????????????????### | | ??????????????????????????????????# ## | | ?????????# ????????????????????#### ## & "### | | ???????? ???????????????#???????# ### " #?? | | ?????????????????##?????????????# ##?# #####?? | | ????????????????## ???????????## ### "##??#?# | | ????????????????? ????????#?# "###### | | ??????????? ??????? ?????????## """ ### | | ????????#????#?????? ????????# ##### "!" ### | | ?????????#?????####?? ####????# #???## ######% | | ??????????????## ##;;;#????# ###### #?###""" | | ??????????????# ;; ###??# ## ##?## " | | ??????????????# R = ##### # ### | | ??????????????# R ## " | | ??????#?#?????# @ | | ???????##?????#; ;;;; ## ## | | ?????#????#???## R #### ##### ##? | | ?????????????## "###### ##???###?? | | ????????#????# ##### ###z ##?#??????? | | ????#????????# #???###?# #?????????? | | ??????#??????# [ ##???????# #????????? | | ?????????????## % #????????# ""#?#?????? | | ?????????????##"" ## #???????# #???????? | | ???????#?????#"" ##? #??????? % ???????? | | ????????????#""## ##?%##?#????# ###### ??????? | | ?????#??????#"#?# #? #??????# ??????# ##?????? | | ??????????## ???# ## ###????????????#? ????????? | | ?????????"" ???# #?? ?? ????????????????? | | ????????"" ""## ## # # #?????????????????????? | | ?????????# """ "#??### ????????????????????????? | | ?????????# """"" #?#????? ?????????????????????? | | ???????? """"" #?????????????????????????????? | | ???????? ""##" ????????????????????????????? | | ?????????"# ?### #???????????????????????????? | | ??????????### ????? ##?????#?????????????????????? | | ????????????##?????##????????????????????????????? | | ?????????????????????????????????????????????????? | | ?????????????????????????????????????????????????? | | ?????????????????????????????????????????????????? | +----------------------------------------------------+ Best States ------------- Heat Dissipation 25 Energy Generation 15 Energy Capacity 250 Matter Stores 300 Matter Capacity 300 Sight Range 16 Terrain Scan Range 16 Terrain Scan Density 10 Armor Coverage 150 Evasion (%) 44 Item Schematics ----------------- None Robot Schematics ------------------ None Fabricated ------------ Nothing Alien Tech Used ----------------- None Achievements -------------- None Challenges ------------ None Game ------ Seed MagneticRecyclingNetwork Manual? 0 Play Time 00:21:26 Cumulative 64.9 hours Start 2024.04.16 @ 03:32:23 End 2024.04.16 @ 03:51:12 Sessions 1 Manual Loads 0 Difficulty Rogue Special Mode None Game No. 77 Rogue 77 Adventurer 0 Explorer 0 Win Type - Total 0 Types 0/0/0/0/0/0/0/0/0 Lore% 18 Gallery% 41 Achievement% 29 Wizard Run 0 Options --------- Layout 1 ASCII 0 Keyboard 1 Movement Vi Keybinds 0 Fullscreen 1 Font 24/Smallcaps Map View 50x35 Zoom Use 0% Tactical HUD 1 Map Filters NONE Filters NONE Steam 1 RUN: 49e87bfd-86d0-4886-bbe4-be6f8e457ba5